bitfinex-derivatives/quotes_ETHF0:USTF0_20240831
["timestamp","ask_amount","ask_price","bid_price","bid_amount"]
[1725114584612,0.7399,2523.6,2523.5,0.23775]
[1725114586506,0.7399,2523.6,2523.4,0.23775]
[1725114588817,0.7399,2523.6,2523.3,3.9751]
[1725114588818,0.7399,2523.6,2523.5,0.23775]
[1725114593009,0.39584413,2523.7,2523.6,0.23774]
[1725114593305,0.39584413,2523.7,2523.5,0.23774]
[1725114593720,0.39584413,2523.7,2523.6,0.378]
[1725114594216,4.35824413,2523.7,2523.6,0.378]
[1725114594711,4.73154413,2523.7,2523.6,0.378]
[1725114595806,7.84114383,2523.7,2523.6,0.378]
[1725114596517,4.73154413,2523.7,2523.6,0.378]
[1725114597109,4.73154413,2523.7,2523.6,0.61574]
[1725114599007,7.84114383,2523.7,2523.6,0.378]
[1725114600405,13.84114383,2523.7,2523.2,1.03866836]
[1725114600614,13.84114383,2523.7,2522.9,2.07733673]
[1725114600615,7.6073997,2523.4,2523.0,0.7702]
[1725114600817,3.2078,2523.1,2523.0,0.3883]
[1725114601114,3.2078,2523.1,2522.9,0.2378]
[1725114601322,0.3863,2523.0,2522.9,0.2378]
[1725114602119,0.3863,2523.0,2522.8,4.5463]
[1725114602323,0.3527,2522.9,2522.8,4.5463]
[1725114602624,0.718,2522.9,2522.8,4.5463]
[1725114603410,0.3863,2523.0,2522.8,4.78411]
[1725114603651,3.566,2523.1,2522.9,0.2378]
[1725114604422,3.2078,2523.1,2523.0,0.2378]
[1725114604729,6.3173997,2523.6,2523.4,0.23776]
[1725114605017,3.594,2523.6,2523.4,0.23776]
[1725114605216,0.3862,2523.6,2523.5,0.7471]
[1725114609022,3.11554383,2523.7,2523.5,0.3654]
[1725114609221,3.11554383,2523.7,2523.6,0.3549]
[1725114609222,0.00594413,2523.7,2523.6,0.3549]
[1725114609630,3.96834413,2523.7,2523.6,0.3549]
[1725114609923,3.96834413,2523.7,2523.6,0.59264]
[1725114610325,0.00594413,2523.7,2523.6,0.59264]
[1725114624338,0.00594413,2523.7,2523.6,5.84504]
[1725114627836,0.00594413,2523.7,2523.6,6.43939]
[1725114628030,3.8667997,2524.3,2524.2,0.23768]
[1725114628031,3.2078,2524.3,2524.2,0.23768]
[1725114629033,0.7464,2524.4,2524.2,0.23768]
[1725114630138,0.7464,2524.4,2524.3,0.23767]
[1725114631041,0.7464,2524.4,2524.0,1.67884413]
[1725114631042,0.7464,2524.4,2524.2,0.23768]
[1725114634251,2.0364,2524.4,2524.2,0.23768]
[1725114636442,2.0364,2524.4,2524.3,0.23767]
[1725114636641,0.7464,2524.4,2524.3,0.23767]
[1725114639148,0.00594413,2524.5,2524.4,0.23766]
[1725114639462,0.00594413,2524.5,2524.4,0.59656]
[1725114646454,0.00594413,2524.5,2524.4,4.55816]
[1725114648650,0.00594413,2524.5,2524.4,0.59656]
[1725114648852,3.96754413,2524.5,2524.0,3.21374413]
[1725114649058,0.7388,2524.4,2524.1,0.23769]
[1725114649266,1.1273,2524.4,2524.1,0.23769]
[1725114651868,1.1273,2524.4,2524.2,0.23768]
[1725114652162,1.1273,2524.4,2524.0,3.58574413]
[1725114652163,1.1273,2524.4,2524.3,0.23767]
[1725114653155,1.1273,2524.4,2524.3,0.62327]
[1725114654763,0.00594413,2524.5,2524.4,0.23766]
[1725114662059,0.00594413,2524.5,2524.4,5.48926]
[1725114662359,0.00594413,2524.5,2524.4,1.52766]
[1725114662582,0.00594413,2524.5,2524.4,5.48926]
[1725114662953,0.3558,2524.9,2524.8,0.23763]
[1725114667570,0.3558,2524.9,2524.7,0.23763]
[1725114667763,0.3808,2524.8,2524.7,0.23763]
[1725114677570,0.3808,2524.8,2524.5,0.3574]
[1725114677877,0.23765,2524.5,2524.4,4.158]
[1725114678369,5.84725,2524.5,2524.4,4.158]
[1725114678770,0.23768,2524.3,2524.0,3.80854413]
[1725114679076,0.7217,2524.2,2524.1,0.23769]
[1725114681666,0.7217,2524.2,2524.0,5.09854413]
[1725114683262,0.7217,2524.2,2524.1,0.23769]
[1725114683669,0.59566,2524.5,2524.1,0.23769]
[1725114683967,1.0999,2524.5,2524.2,0.61487]
[1725114684271,1.0999,2524.5,2524.2,1.90487]
[1725114684471,1.0999,2524.5,2524.2,1.6672]
[1725114684974,1.0999,2524.5,2524.3,0.23767]
[1725114685474,1.0999,2524.5,2524.4,0.3683]
[1725114685864,5.0615,2524.5,2524.4,0.3683]
[1725114688472,5.0615,2524.5,2524.4,0.60596]
[1725114689973,1.0999,2524.5,2524.4,0.60596]
[1725114690177,3.2078,2524.6,2524.5,0.23765]
[1725114693383,0.7415,2524.7,2524.6,0.23764]
[1725114693882,4.3477,2524.7,2524.6,0.23764]
[1725114694069,0.3869,2524.7,2524.6,0.23764]
[1725114694271,0.3869,2524.7,2524.6,0.59004]
[1725114696981,0.3665,2524.9,2524.7,0.23764]
[1725114697186,0.3665,2524.9,2524.8,0.3622]
[1725114697883,0.3665,2524.9,2524.8,0.59983]
[1725114700582,0.746,2525.0,2524.9,0.23762]
[1725114700583,0.3716,2525.0,2524.9,0.23762]
[1725114700883,0.00594413,2525.1,2524.9,1.52761]
[1725114701088,0.37614413,2525.1,2524.9,1.52761]
[1725114701790,0.37614413,2525.1,2524.9,0.23761]
[1725114702476,0.37614413,2525.1,2525.0,0.23761]
[1725114704376,0.37614413,2525.1,2524.9,0.23761]
[1725114705078,0.37614413,2525.1,2525.0,0.23761]
[1725114707889,3.62786632,2525.5,2525.0,0.23761]
[1725114707890,3.1095997,2525.6,2525.0,8.4578]
[1725114708192,0.7247,2525.5,2525.4,0.23757]
[1725114708377,0.7247,2525.5,2525.3,1.52757]
[1725114709175,0.7247,2525.5,2525.4,0.23757]
[1725114709377,0.7247,2525.5,2525.4,0.61757]
[1725114713089,0.7247,2525.5,2525.4,0.38]
[1725114716500,0.7247,2525.5,2525.4,1.90757]
[1725114717488,0.7247,2525.5,2525.4,0.38]
[1725114718291,0.7247,2525.5,2525.4,0.61757]
[1725114721602,0.7247,2525.5,2525.4,1.90757]
[1725114721896,0.3738,2525.8,2525.5,0.23756]
[1725114722197,5.14902154,2525.8,2525.6,1.52755]
[1725114722394,5.14902154,2525.8,2525.6,1.29]
[1725114722594,0.7294,2525.8,2525.7,0.3843]
[1725114725503,0.7294,2525.8,2525.7,0.62184]
[1725114726101,0.7294,2525.8,2525.7,0.3843]
[1725114726687,0.7294,2525.8,2525.7,0.62184]
[1725114727099,0.7294,2525.8,2525.7,0.3843]
[1725114727298,0.7294,2525.8,2525.7,0.62184]
[1725114728406,0.39,2526.0,2525.7,4.58104]
[1725114728598,0.39,2526.0,2525.7,0.62184]
[1725114728793,0.39,2526.0,2525.8,0.23753]
[1725114729003,0.39,2526.0,2525.7,0.3843]
[1725114729004,0.39,2526.0,2525.7,1.6743]
[1725114729304,0.39,2526.0,2525.9,0.23752]
[1725114729690,0.7329,2526.1,2525.9,0.23752]
[1725114729894,0.7329,2526.1,2525.8,0.23753]
[1725114730596,0.7329,2526.1,2525.9,0.23752]
[1725114731006,0.7329,2526.1,2526.0,0.3611]
[1725114731701,0.7329,2526.1,2526.0,0.59861]
[1725114732201,0.7329,2526.1,2526.0,0.3611]
[1725114732401,0.7329,2526.1,2526.0,0.59861]
[1725114732600,0.377,2526.1,2526.0,0.59861]
[1725114733703,0.377,2526.1,2526.0,0.3611]
[1725114741406,3.5655,2526.2,2526.0,5.6095]
[1725114741407,3.2078,2526.2,2526.0,5.6095]
[1725114741709,3.2078,2526.2,2526.0,1.88861]
[1725114742106,3.2078,2526.2,2526.1,0.2375]
[1725114742310,0.3573,2526.3,2526.1,4.1959]
[1725114742615,0.3573,2526.3,2526.1,0.2375]
[1725114743404,0.3573,2526.3,2526.2,0.23749]
[1725114743609,0.3613,2526.4,2526.2,0.23749]
[1725114743810,0.3613,2526.4,2526.1,0.2375]
[1725114744008,0.3613,2526.4,2526.2,0.23749]
[1725114744410,0.3613,2526.4,2526.3,0.3589]
[1725114746504,0.3613,2526.4,2526.3,0.59638]
[1725114747007,3.2078,2526.5,2526.4,0.23748]
[1725114747202,3.2078,2526.5,2526.4,0.3571]
[1725114747411,8.4562,2526.5,2525.9,0.61171]
[1725114747617,0.7349,2526.7,2525.8,4.158]
[1725114747618,0.2375,2526.1,2525.8,4.158]
[1725114747820,2.0249,2526.0,2525.8,4.158]
[1725114748016,0.3556,2525.9,2525.6,3.2078]
[1725114748212,0.23753,2525.8,2525.4,1.53350413]
[1725114749619,5.09093,2525.9,2525.4,1.53350413]
[1725114750610,3.80093,2525.9,2525.4,1.53350413]
[1725114751713,3.5634,2525.9,2525.5,0.23756]
[1725114751908,3.5634,2525.9,2525.4,1.29594413]
[1725114751909,3.5634,2525.9,2525.6,1.29]
[1725114752110,3.5634,2525.9,2525.7,0.23754]
[1725114752310,3.5634,2525.9,2525.7,0.95244]
[1725114752509,3.2078,2525.9,2525.7,0.95244]
[1725114752716,3.2078,2525.9,2525.7,0.7149]
[1725114753520,3.2078,2525.9,2525.7,0.95244]
[1725114754021,3.2078,2525.9,2525.7,0.3628]
[1725114755613,3.2078,2525.9,2525.4,0.00594413]
[1725114755808,0.23755,2525.7,2525.4,0.00594413]
[1725114756021,0.7511,2525.6,2525.4,0.00594413]
[1725114756315,1.1173,2525.6,2525.4,0.24350413]
[1725114756506,1.1173,2525.6,2525.4,0.00594413]
[1725114756909,1.1173,2525.6,2525.4,0.24351413]
[1725114757409,1.1173,2525.6,2525.4,0.00594413]
[1725114757615,1.1173,2525.6,2525.4,0.24351413]
[1725114758518,3.44533,2525.9,2525.5,0.23756]
[1725114758716,0.3595,2525.9,2525.7,0.23754]
[1725114759018,0.3595,2525.9,2525.6,1.91575]
[1725114759218,0.3595,2525.9,2525.7,0.23754]
[1725114759424,0.3595,2525.9,2525.8,0.23753]
[1725114759838,0.3595,2525.9,2525.7,0.23753]
[1725114762125,0.3595,2525.9,2525.8,0.23753]
[1725114762420,0.3595,2525.9,2525.7,0.23754]
[1725114764822,0.3595,2525.9,2525.8,0.23753]
[1725114766627,0.3595,2525.9,2525.7,0.23754]
[1725114768719,4.55622,2525.9,2525.6,0.23754]
[1725114768917,0.59702,2525.9,2525.6,0.23754]
[1725114769129,0.23753,2525.8,2525.6,0.23754]
[1725114769429,0.59703,2525.9,2525.6,0.23754]
[1725114770528,0.23753,2525.8,2525.5,0.23756]
[1725114770829,0.23753,2525.8,2525.6,0.23755]
[1725114771030,0.3595,2525.9,2525.4,1.29594413]
[1725114771231,0.23755,2525.7,2525.4,1.53350413]
[1725114771428,0.3747,2525.6,2525.4,1.53350413]
[1725114771628,0.3596,2525.5,2525.4,1.53350413]
[1725114772523,0.3596,2525.5,2525.4,1.29594413]
[1725114772718,4.55716,2525.5,2525.4,0.00594413]
[1725114773132,5.84716,2525.5,2525.4,0.00594413]
[1725114774531,10.28247014,2525.5,2525.4,0.00594413]
[1725114784733,8.75491014,2525.5,2525.4,0.00594413]
[1725114784935,0.7541,2525.6,2525.5,0.23756]
[1725114785830,0.7215,2525.8,2525.6,0.23755]
[1725114786032,1.1077,2525.8,2525.6,0.23755]
[1725114786231,4.54728202,2525.7,2525.6,0.23755]
[1725114786644,0.7552,2525.8,2525.7,0.23754]
[1725114786942,0.369,2525.8,2525.6,0.23755]
[1725114788444,0.369,2525.8,2525.7,0.23754]
[1725114788828,0.99732,2526.0,2525.9,0.23752]
[1725114788829,0.7683,2526.0,2525.9,0.23752]
[1725114789035,3.2078,2526.1,2526.0,0.23751]
[1725114789643,3.2078,2526.1,2525.7,1.29]
[1725114789644,0.7602,2526.3,2526.1,0.2375]
[1725114789829,0.7602,2526.3,2526.2,0.3835]
[1725114790145,4.7186,2526.3,2526.2,0.3835]
[1725114792043,4.7186,2526.3,2526.2,0.62099]
[1725114792254,3.2078,2526.5,2526.3,0.23748]
[1725114795441,0.7492,2526.6,2526.2,1.6735]
[1725114795649,5.12263,2526.9,2526.5,0.23747]
[1725114795941,4.37285717,2526.7,2526.6,0.3873]
[1725114796242,5.85333,2526.9,2526.6,0.3873]
[1725114796641,4.37285717,2526.7,2526.6,0.7479]
[1725114796845,4.37285717,2526.8,2526.6,0.7479]
[1725114797046,5.85333,2526.9,2526.6,0.7479]
[1725114797243,4.50163935,2526.8,2526.6,0.7479]
[1725114799242,4.50163935,2526.8,2526.6,0.98536]
[1725114800651,4.50163935,2526.8,2526.6,0.7479]
[1725114800849,5.6159,2526.9,2526.6,0.7479]
[1725114801050,5.6159,2526.9,2526.6,0.98535]
[1725114801741,5.6159,2526.9,2526.7,0.23745]
[1725114802546,5.6159,2526.9,2526.6,0.98535]
[1725114803845,5.6159,2526.9,2526.7,0.23745]
[1725114804451,5.6159,2526.9,2526.6,0.98535]
[1725114805044,5.6159,2526.9,2526.7,0.23745]
[1725114805353,5.6159,2526.9,2526.6,0.98535]
[1725114805954,5.85333,2526.9,2526.6,0.98535]
[1725114806860,5.6159,2526.9,2526.6,0.98535]
[1725114807958,5.85333,2526.9,2526.6,0.98535]
[1725114808354,5.6159,2526.9,2526.6,0.98535]
[1725114811449,5.6159,2526.9,2526.3,3.2078]
[1725114811450,1.29,2526.7,2526.3,3.2078]
[1725114811658,1.29,2526.7,2526.4,0.23748]
[1725114816859,1.29,2526.7,2526.4,0.61098]
[1725114820855,1.52745,2526.7,2526.4,0.3735]
[1725114821061,1.52745,2526.7,2525.9,4.52717208]
[1725114821062,0.23751,2526.1,2525.9,7.3658]
[1725114821271,0.23751,2526.1,2525.4,0.00594413]
[1725114821272,0.23751,2526.0,2525.6,0.62044]
[1725114821463,1.0879,2526.0,2525.6,0.3829]
[1725114821661,1.32542,2526.0,2525.6,0.3829]
[1725114822161,1.32542,2526.0,2525.6,0.62045]
[1725114824294,1.32542,2526.0,2525.6,0.3829]
[1725114824865,1.0879,2526.0,2525.6,0.62045]
[1725114826667,1.0879,2526.0,2525.7,0.23754]
[1725114827979,1.0879,2526.0,2525.8,0.23752]
[1725114828367,1.0879,2526.0,2525.9,0.354]
[1725114833079,1.0879,2526.0,2525.7,1.52754]
[1725114833385,1.0879,2526.0,2525.7,1.88054]
[1725114833588,1.0879,2526.0,2525.8,0.23753]
[1725114834579,1.0879,2526.0,2525.9,0.23752]
[1725114834780,0.23749,2526.3,2525.9,1.52752]
[1725114835079,5.21949918,2526.2,2525.9,1.52752]
[1725114837177,5.21949918,2526.2,2525.8,3.2078]
[1725114837178,5.45698918,2526.2,2525.8,3.44533]
[1725114837578,0.23752,2526.0,2525.7,0.353]
[1725114839391,3.44531,2526.1,2525.7,0.59054]
[1725114839687,3.44531,2526.1,2525.7,1.88054]
[1725114840384,0.23751,2526.0,2525.7,1.643]
[1725114840588,0.23754,2525.8,2525.6,1.29]
[1725114840788,0.7318,2525.7,2525.6,1.29]
[1725114841182,0.7318,2525.7,2525.6,5.2492]
[1725114842176,0.3638,2525.7,2525.6,5.48675]
[1725114842692,0.3557,2525.8,2525.6,5.48675]
[1725114842887,0.3557,2525.8,2525.7,0.61894]
[1725114843194,0.7318,2526.0,2525.7,0.61894]
[1725114843488,1.0946,2526.0,2525.7,0.61894]
[1725114843693,1.0946,2526.0,2525.8,1.52753]
[1725114843891,0.3638,2526.0,2525.9,0.23752]
[1725114844092,0.7472,2526.3,2525.9,1.6494]
[1725114844390,1.34119,2526.3,2526.0,0.23751]
[1725114844581,4.46173414,2526.2,2526.0,0.23751]
[1725114845190,4.46173414,2526.2,2526.1,0.2375]
[1725114845484,1.1037,2526.3,2526.1,0.2375]
[1725114845686,0.7193,2526.3,2526.2,0.23749]
[1725114845889,0.7193,2526.3,2526.2,0.59599]
[1725114846493,0.7193,2526.3,2526.2,0.3585]
[1725114848077,0.7193,2526.3,2526.1,1.5275]
[1725114850493,0.7193,2526.3,2526.1,1.29]
[1725114850684,0.7193,2526.3,2526.1,1.5275]
[1725114850881,0.7193,2526.3,2526.1,1.29]
[1725114851091,0.7193,2526.3,2526.0,1.90421]
[1725114851494,0.7193,2526.3,2526.1,0.2375]
[1725114852696,0.7193,2526.3,2526.0,1.6667]
[1725114852697,0.95679,2526.3,2526.0,1.6667]
[1725114852888,0.95679,2526.3,2526.0,1.90421]
[1725114853397,0.7193,2526.3,2526.0,1.90421]
[1725114854083,0.95679,2526.3,2526.0,1.6667]
[1725114854287,0.7193,2526.3,2526.0,1.90421]
[1725114855690,0.7193,2526.3,2526.1,0.2375]
[1725114856494,0.7193,2526.3,2526.2,0.23749]
[1725114856692,0.7193,2526.3,2526.1,0.2375]
[1725114856994,0.23749,2526.2,2526.0,1.6667]
[1725114857294,3.2078,2526.1,2525.9,0.3594]
[1725114857503,3.5676,2526.1,2525.9,0.3594]
[1725114858503,3.8051,2526.1,2525.9,0.3594]
[1725114859295,3.5676,2526.1,2525.9,0.59692]
[1725114860190,0.3598,2526.1,2525.9,0.59692]
[1725114861496,0.3598,2526.1,2525.9,0.3594]
[1725114862497,0.3783,2526.0,2525.9,0.3594]
[1725114862900,0.3783,2526.0,2525.9,4.3186]
[1725114863396,0.3783,2526.0,2525.9,0.3594]
[1725114864401,0.3783,2526.0,2525.9,4.3186]
[1725114864602,0.3783,2526.0,2525.9,4.55612]
[1725114865689,0.3598,2526.1,2525.9,4.55612]
[1725114865904,0.3598,2526.1,2525.9,0.59692]
[1725114866498,0.3598,2526.1,2526.0,0.23751]
[1725114868800,0.3525,2526.2,2526.0,0.59911]
[1725114870907,3.45311111,2526.2,2526.0,0.59911]
[1725114871114,0.3525,2526.2,2526.0,0.59911]
[1725114873500,3.45311111,2526.2,2526.0,0.59911]
[1725114873913,3.45311111,2526.2,2525.9,1.88692]
[1725114874114,0.3585,2526.1,2525.9,1.88692]
[1725114874613,11.60716307,2526.0,2525.4,9.69629874]
[1725114874912,0.23754,2525.8,2525.4,9.28551413]
[1725114875111,0.3585,2525.7,2525.4,9.28551413]
[1725114875312,0.7466,2525.7,2525.4,9.28551413]
[1725114875714,0.7466,2525.7,2525.5,0.23756]
[1725114876013,0.7466,2525.7,2525.5,1.52756]
[1725114876205,0.7466,2525.7,2525.5,1.29]
[1725114879009,3.47081111,2525.9,2525.6,0.23755]
[1725114879010,0.3702,2525.9,2525.6,0.23755]
[1725114879213,0.7392,2525.9,2525.7,1.6793]
[1725114879424,0.97672,2525.9,2525.7,1.6793]
[1725114880417,0.7392,2525.9,2525.7,1.6793]
[1725114882008,0.97672,2525.9,2525.7,1.6793]
[1725114884910,0.97672,2525.9,2525.7,0.3893]
[1725114885921,0.23753,2525.8,2525.6,1.29]
[1725114887716,4.07734111,2525.9,2525.6,1.29]
[1725114887915,0.7392,2525.9,2525.6,1.52755]
[1725114888620,0.7392,2525.9,2525.6,1.88585]
[1725114888621,0.3702,2525.9,2525.6,1.88585]
[1725114888812,0.3702,2525.9,2525.7,0.3824]
[1725114889012,0.3702,2525.9,2525.7,0.61994]
[1725114889209,0.3702,2525.9,2525.8,0.3547]
[1725114892916,0.3702,2525.9,2525.8,0.59223]
[1725114894915,0.3702,2525.9,2525.8,0.3547]
[1725114895114,0.3702,2525.9,2525.8,0.59223]
[1725114899826,3.2078,2526.0,2525.9,0.23752]
[1725114903445,3.2078,2526.0,2525.9,4.19672]
[1725114904746,3.2078,2526.0,2525.9,5.48672]
[1725114906541,3.2078,2526.0,2525.9,11.48672]
[1725114906740,3.10061111,2526.4,2526.3,0.23748]
[1725114906935,3.61737963,2526.6,2526.4,0.23748]
[1725114906936,3.10061111,2526.6,2526.4,0.23748]
[1725114907234,4.22301111,2526.7,2526.5,0.62637]
[1725114907736,4.22301111,2526.7,2526.6,0.23746]
[1725114907737,1.1224,2526.7,2526.6,0.23746]
[1725114910840,1.1224,2526.7,2526.5,1.91636]
[1725114914046,3.2078,2526.8,2526.6,5.2476]
[1725114914339,3.2078,2526.8,2526.6,1.52745]
[1725114915438,3.2078,2526.8,2526.5,1.91636]
[1725114915945,3.2078,2526.8,2526.6,0.23745]
[1725114918348,3.2078,2526.8,2526.7,1.52745]
[1725114918746,3.2078,2526.8,2526.7,0.23745]
[1725114919649,3.2078,2526.8,2526.6,1.52745]
[1725114921747,3.2078,2526.8,2526.6,0.23745]
[1725114921942,3.2078,2526.8,2526.5,0.3889]
[1725114923042,3.2078,2526.8,2526.6,0.23746]
[1725114926753,3.2078,2526.8,2526.7,0.23745]
[1725114927438,3.2078,2526.8,2526.6,0.23745]
[1725114929452,3.2078,2526.8,2526.7,0.23745]
[1725114937360,3.2078,2526.8,2526.5,0.7643]
[1725114937546,0.357,2526.7,2526.5,0.3889]
[1725114937963,0.3727,2526.6,2526.5,0.3889]
[1725114938350,0.3727,2526.6,2526.5,0.62637]
[1725114939473,0.3727,2526.6,2526.5,0.3889]
[1725114940066,0.3727,2526.6,2526.5,0.62637]
[1725114940366,0.3727,2526.6,2526.5,1.91637]
[1725114944773,0.3727,2526.6,2526.4,0.7544]
[1725114944774,4.3303,2526.6,2525.8,1.03455461]
[1725114944973,0.23749,2526.3,2526.0,0.23751]
[1725114945278,0.3794,2526.2,2526.0,0.23751]
[1725114945466,0.7472,2526.2,2526.0,0.23751]
[1725114946378,0.7472,2526.2,2526.1,1.5275]
[1725114946673,3.10061111,2526.7,2526.1,1.29]
[1725114946875,0.3678,2526.5,2526.4,0.23747]
[1725114947071,0.3678,2526.5,2526.4,1.52747]
[1725114949175,0.7572,2526.6,2526.5,0.23747]
[1725114950870,0.7572,2526.6,2526.5,0.59407]
[1725114951075,3.85781111,2526.6,2526.5,0.59407]
[1725114951284,0.7572,2526.6,2526.5,0.59407]
[1725114952480,3.85781111,2526.6,2526.5,0.59407]
[1725114955083,0.7572,2526.6,2526.5,0.59407]
[1725114955287,3.85781111,2526.6,2526.5,0.59407]
[1725114956082,3.85781111,2526.6,2526.5,0.3566]
[1725114956083,0.7572,2526.6,2526.5,0.3566]
[1725114956278,3.85781111,2526.6,2526.4,1.52747]
[1725114958577,3.10061111,2526.6,2526.5,0.23747]
[1725114958773,3.10061111,2526.7,2526.5,0.62197]
[1725114959178,3.10061111,2526.7,2526.6,1.52746]
[1725114960186,3.61737963,2526.8,2526.7,0.23745]
[1725114960187,3.10061111,2526.8,2526.7,0.23745]
[1725114961275,3.2078,2526.9,2526.7,0.23745]
[1725114961276,6.30841111,2526.9,2526.7,0.23745]
[1725114961489,3.10061111,2526.8,2526.7,0.23745]
[1725114961694,6.30841111,2526.9,2526.8,0.23744]
[1725114962886,6.30841111,2526.9,2526.7,1.52744]
[1725114964277,6.30841111,2526.9,2526.8,0.23744]
[1725114972999,3.10061111,2526.9,2526.8,0.23744]
[1725114976399,4.20851111,2527.0,2526.8,0.23744]
[1725114976695,4.20851111,2527.0,2526.9,0.23743]
[1725114977086,4.20851111,2527.0,2526.8,0.23743]
[1725114977496,3.10061111,2526.9,2526.8,0.23743]
[1725114978699,3.10061111,2526.9,2526.7,1.90778413]
[1725114979405,1.34532,2527.0,2526.7,0.00594413]
[1725114979406,6.30841111,2526.8,2526.7,0.00594413]
[1725114979594,6.54585111,2526.8,2526.7,0.00594413]
[1725114981492,3.44524,2526.8,2526.7,0.00594413]
[1725114981902,7.21989254,2526.8,2526.7,0.00594413]
[1725114982109,3.44524,2526.8,2526.7,0.00594413]
[1725114986000,6.55829814,2526.8,2526.7,0.00594413]
[1725114986404,3.44524,2526.8,2526.7,0.00594413]
[1725114986794,3.2078,2526.8,2526.7,0.00594413]
[1725114986996,6.5582284,2526.8,2526.7,0.00594413]
[1725114987495,6.3207884,2526.8,2526.7,0.00594413]
[1725114987896,6.5582284,2526.8,2526.7,0.00594413]
[1725114988611,6.5582621,2526.8,2526.7,0.00594413]
[1725114989208,3.44524,2526.8,2526.7,0.00594413]
[1725114989897,8.85009381,2526.8,2526.7,0.00594413]
[1725114990096,0.23746,2526.6,2526.3,0.3854]
[1725114990302,7.3161972,2526.5,2526.2,1.52749]
[1725114990497,4.20297,2526.5,2526.2,1.52749]
[1725114990805,0.3888,2526.4,2526.2,1.52749]
[1725114990999,0.3888,2526.4,2526.2,1.90409]
[1725114991201,0.3888,2526.4,2526.3,1.52748]
[1725114991399,3.1132272,2526.6,2526.4,0.23748]
[1725114991601,0.23747,2526.5,2526.2,0.3766]
[1725114991795,0.23747,2526.5,2526.2,2.26179]
[1725114991796,0.7452,2526.5,2526.2,2.26179]
[1725114991997,0.3742,2526.4,2526.2,2.26179]
[1725114994403,0.3742,2526.4,2526.2,2.0243]
[1725114995205,0.3742,2526.4,2526.2,1.6477]
[1725114996009,0.61168,2526.4,2526.2,1.6477]
[1725114997111,0.3742,2526.4,2526.2,1.6477]
[1725114997416,0.3742,2526.4,2526.2,1.88519]
[1725114997616,0.3742,2526.4,2526.3,0.3538]
[1725114998512,0.3742,2526.4,2526.2,1.6477]
[1725114999019,0.2375,2526.1,2526.0,0.00594413]
[1725114999510,7.3091272,2526.1,2526.0,0.00594413]
[1725114999723,8.0395272,2526.1,2526.0,0.00594413]
[1725115000517,12.43485541,2526.1,2526.0,0.00594413]
[1725115001704,9.32162821,2526.1,2526.0,0.00594413]
[1725115002914,6.3210272,2526.3,2526.0,0.00594413]
[1725115003115,3.5861,2526.3,2526.0,1.53345413]
[1725115003314,6.6993272,2526.3,2526.1,0.7578]
[1725115003520,3.5861,2526.3,2526.1,0.7578]
[1725115004012,3.82359,2526.3,2526.1,0.3843]
[1725115004410,3.5861,2526.3,2526.1,0.3843]
[1725115004816,3.82359,2526.3,2526.1,0.3843]
[1725115013914,3.5861,2526.3,2526.1,0.3843]
[1725115014320,3.82359,2526.3,2526.1,0.7496]
[1725115014719,3.5861,2526.3,2526.1,0.7496]
[1725115015715,3.82359,2526.3,2526.1,0.7496]
[1725115017921,0.23749,2526.2,2526.1,0.7496]
[1725115018122,0.23749,2526.2,2526.1,0.3843]
[1725115019219,0.2375,2526.1,2526.0,0.00594413]
[1725115019620,4.3964995,2526.1,2526.0,0.00594413]
[1725115019820,8.69908983,2526.1,2526.0,0.00594413]
[1725115020912,11.81231703,2526.1,2526.0,0.00594413]
[1725115022228,8.69908983,2526.1,2526.0,0.00594413]
[1725115022627,8.49849033,2526.1,2526.0,0.00594413]
[1725115022820,0.2375,2526.1,2526.0,0.00594413]
[1725115025022,4.1959,2526.1,2526.0,0.00594413]
[1725115025230,8.46801143,2526.1,2526.0,0.00594413]
[1725115026032,11.58123863,2526.1,2526.0,0.00594413]
[1725115026332,8.46801143,2526.1,2526.0,0.00594413]
[1725115027730,11.77858281,2526.1,2526.0,0.00594413]
[1725115031133,0.23753,2525.9,2525.7,0.3639]
[1725115031323,3.44533,2525.9,2525.7,0.3639]
[1725115031519,4.5604039,2525.8,2525.7,0.3639]
[1725115031719,4.7979339,2525.8,2525.7,0.3639]
[1725115032130,4.7979339,2525.8,2525.5,0.00594413]
[1725115032131,0.23755,2525.6,2525.5,0.00594413]
[1725115032337,4.73535,2525.6,2525.5,0.00594413]
[1725115032631,13.26717433,2525.6,2525.5,0.00594413]
[1725115032833,18.22639707,2525.6,2525.5,0.00594413]
[1725115033041,0.2376,2525.1,2525.0,0.3834]
[1725115033236,3.4454,2525.1,2525.0,0.3834]
[1725115033728,3.2078,2525.1,2525.0,0.3834]
[1725115034332,3.4454,2525.1,2525.0,0.3834]
[1725115035624,0.23761,2525.0,2524.8,0.00594413]
[1725115035836,0.23761,2525.0,2524.8,0.37814413]
[1725115036135,0.3808,2524.9,2524.8,0.37814413]
[1725115044538,0.61842,2524.9,2524.8,0.37814413]
[1725115046538,10.39322929,2524.9,2524.8,0.00594413]
[1725115055942,16.39322929,2524.9,2524.3,0.3888]
[1725115056243,1.52766,2524.4,2524.3,0.3888]
[1725115056744,7.17902617,2524.4,2524.3,0.3888]
[1725115058538,0.23768,2524.2,2524.1,0.00594413]
[1725115059240,8.7660859,2524.2,2524.1,0.00594413]
[1725115062545,11.7362059,2524.2,2523.8,0.3712]
[1725115062742,11.7362059,2524.2,2523.7,0.3746]
[1725115062743,0.23772,2523.8,2523.7,0.3746]
[1725115063046,4.51979665,2523.8,2523.7,0.3746]
[1725115063352,5.24619665,2523.8,2523.7,0.3746]
[1725115065045,5.00847665,2523.8,2523.7,0.3746]
[1725115065239,4.28207665,2523.8,2523.7,0.3746]